[Event "Titled Tuesday Blitz April 18 Early 2023"]
[White "Dubreuil, Julien"]
[Black "Mesa Cruz, Juan Carlos"]
[WhiteFideId "621285"]
[BlackFideId "6423400"]
[WhiteElo "2215"]
[BlackElo "2131"]
[Result "0-1"]
[Round "10"]
[TimeControl "180+2"]
[Date "2023.04.18"]
[WhiteClock "0:00:42"]
[BlackClock "0:01:42"]

1. d4 {[%clk 0:03:00]}  Nf6 {[%clk 0:02:44]} 2. c4 {[%clk 0:03:00]}  e6 {[%clk 0:02:44]} 3. Nc3 {[%clk 0:03:00]}  Bb4 {[%clk 0:02:44]} 4. e3 {[%clk 0:03:00]}  O-O {[%clk 0:02:43]} 5. Ne2 {[%clk 0:02:57]}  c6 {[%clk 0:02:34]} 6. a3 {[%clk 0:02:55]}  Ba5 {[%clk 0:02:33]} 7. b4 {[%clk 0:02:55]}  Bc7 {[%clk 0:02:33]} 8. Bb2 {[%clk 0:02:55]}  d5 {[%clk 0:02:32]} 9. Ng3 {[%clk 0:02:53]}  Nbd7 {[%clk 0:02:20]} 10. f4 {[%clk 0:02:40]}  a5 {[%clk 0:02:19]} 11. Bd3 {[%clk 0:02:36]}  Qe7 {[%clk 0:02:18]} 12. O-O {[%clk 0:02:30]}  axb4 {[%clk 0:02:17]} 13. axb4 {[%clk 0:02:30]}  Rxa1 {[%clk 0:02:14]} 14. Qxa1 {[%clk 0:02:30]}  dxc4 {[%clk 0:02:15]} 15. Bc2 {[%clk 0:02:23]}  b5 {[%clk 0:02:09]} 16. Nce4 {[%clk 0:02:08]}  Ng4 {[%clk 0:02:08]} 17. Qe1 {[%clk 0:01:52]}  f5 {[%clk 0:02:05]} 18. Ng5 {[%clk 0:01:42]}  Bd6 {[%clk 0:02:04]} 19. Bc3 {[%clk 0:01:41]}  Nb6 {[%clk 0:02:04]} 20. h3 {[%clk 0:01:39]}  Nf6 {[%clk 0:02:01]} 21. e4 {[%clk 0:01:39]}  fxe4 {[%clk 0:01:59]} 22. N3xe4 {[%clk 0:01:38]}  Nxe4 {[%clk 0:01:58]} 23. Qxe4 {[%clk 0:01:37]}  g6 {[%clk 0:01:52]} 24. d5 {[%clk 0:00:55]}  Nxd5 {[%clk 0:01:45]} 25. Ba1 {[%clk 0:00:45]}  Bxb4 {[%clk 0:01:43]} 26. Qd4 {[%clk 0:00:42]}  Bc5 {[%clk 0:01:42]} 0-1


[Site "https://www.chess.com"]

[Event "Titled Tuesday Blitz April 18 Early 2023"]
[White "So, Wesley"]
[Black "Daneshvar, Bardiya"]
[WhiteFideId "5202213"]
[BlackFideId "12576468"]
[WhiteElo "2749"]
[BlackElo "2468"]
[Result "0-1"]
[Round "11"]
[TimeControl "180+2"]
[Date "2023.04.18"]
[WhiteClock "0:00:04"]
[BlackClock "0:00:11"]

1. e4 {[%clk 0:03:00]}  c6 {[%clk 0:02:59]} 2. d4 {[%clk 0:02:56]}  d5 {[%clk 0:03:00]} 3. exd5 {[%clk 0:02:57]}  cxd5 {[%clk 0:03:01]} 4. Bd3 {[%clk 0:02:57]}  Nf6 {[%clk 0:03:02]} 5. c3 {[%clk 0:02:57]}  Bg4 {[%clk 0:03:03]} 6. Qb3 {[%clk 0:02:57]}  Qc7 {[%clk 0:03:03]} 7. h3 {[%clk 0:02:58]}  Bd7 {[%clk 0:03:04]} 8. Nf3 {[%clk 0:02:58]}  e6 {[%clk 0:03:04]} 9. O-O {[%clk 0:02:57]}  Bd6 {[%clk 0:03:05]} 10. Re1 {[%clk 0:02:58]}  Bc6 {[%clk 0:03:05]} 11. Qc2 {[%clk 0:02:55]}  Nbd7 {[%clk 0:03:04]} 12. Qe2 {[%clk 0:02:55]}  O-O {[%clk 0:03:03]} 13. Nbd2 {[%clk 0:02:45]}  Nh5 {[%clk 0:03:03]} 14. g3 {[%clk 0:02:36]}  Bxg3 {[%clk 0:03:03]} 15. fxg3 {[%clk 0:02:20]}  Qxg3+ {[%clk 0:03:04]} 16. Kh1 {[%clk 0:02:20]}  Nf4 {[%clk 0:02:57]} 17. Qf1 {[%clk 0:02:16]}  Nxd3 {[%clk 0:02:56]} 18. Qxd3 {[%clk 0:02:15]}  Qxh3+ {[%clk 0:02:57]} 19. Kg1 {[%clk 0:02:15]}  Qg3+ {[%clk 0:02:53]} 20. Kf1 {[%clk 0:02:12]}  f6 {[%clk 0:02:51]} 21. Qe2 {[%clk 0:01:57]}  e5 {[%clk 0:02:47]} 22. Qg2 {[%clk 0:01:56]}  Qxg2+ {[%clk 0:02:40]} 23. Kxg2 {[%clk 0:01:57]}  e4 {[%clk 0:02:41]} 24. Nh2 {[%clk 0:01:37]}  f5 {[%clk 0:02:39]} 25. Rg1 {[%clk 0:01:35]}  g5 {[%clk 0:02:29]} 26. a4 {[%clk 0:01:31]}  h6 {[%clk 0:02:26]} 27. b3 {[%clk 0:01:26]}  Kh7 {[%clk 0:02:14]} 28. Ba3 {[%clk 0:01:25]}  Rf6 {[%clk 0:02:11]} 29. Kf1 {[%clk 0:01:14]}  f4 {[%clk 0:01:57]} 30. Ng4 {[%clk 0:01:10]}  Re6 {[%clk 0:01:57]} 31. Rh1 {[%clk 0:01:08]}  Kg7 {[%clk 0:01:54]} 32. Re1 {[%clk 0:01:08]}  Rh8 {[%clk 0:01:51]} 33. Nf3 {[%clk 0:01:05]}  h5 {[%clk 0:01:44]} 34. Nge5 {[%clk 0:01:01]}  exf3 {[%clk 0:01:40]} 35. Nxf3 {[%clk 0:00:53]}  Rxe1+ {[%clk 0:01:30]} 36. Kxe1 {[%clk 0:00:54]}  Kg6 {[%clk 0:01:29]} 37. Rg1 {[%clk 0:00:49]}  g4 {[%clk 0:01:28]} 38. Bd6 {[%clk 0:00:48]}  Re8+ {[%clk 0:01:23]} 39. Kf2 {[%clk 0:00:44]}  Kf5 {[%clk 0:01:19]} 40. Nh4+ {[%clk 0:00:44]}  Kg5 {[%clk 0:01:16]} 41. Nf3+ {[%clk 0:00:45]}  Kf6 {[%clk 0:01:11]} 42. Nh4 {[%clk 0:00:41]}  Re4 {[%clk 0:01:04]} 43. Ng2 {[%clk 0:00:28]}  Kf5 {[%clk 0:00:44]} 44. Nh4+ {[%clk 0:00:28]}  Ke6 {[%clk 0:00:41]} 45. Bc7 {[%clk 0:00:28]}  Nf6 {[%clk 0:00:38]} 46. Ng6 {[%clk 0:00:25]}  f3 {[%clk 0:00:27]} 47. Rh1 {[%clk 0:00:20]}  Re2+ {[%clk 0:00:25]} 48. Kg3 {[%clk 0:00:20]}  Ne4+ {[%clk 0:00:18]} 49. Kh4 {[%clk 0:00:20]}  Kd7 {[%clk 0:00:15]} 50. Bg3 {[%clk 0:00:19]}  Nxg3 {[%clk 0:00:12]} 51. Kxg3 {[%clk 0:00:20]}  Rg2+ {[%clk 0:00:13]} 52. Kf4 {[%clk 0:00:18]}  f2 {[%clk 0:00:13]} 53. Rf1 {[%clk 0:00:16]}  g3 {[%clk 0:00:14]} 54. Ne5+ {[%clk 0:00:15]}  Kc8 {[%clk 0:00:13]} 55. Nf3 {[%clk 0:00:15]}  Bd7 {[%clk 0:00:12]} 56. Nd2 {[%clk 0:00:04]}  Rg1 {[%clk 0:00:11]} 0-1


[Site "https://www.chess.com"]

[Event "Titled Tuesday Blitz April 18 Early 2023"]
[White "Sarana, Alexey"]
[Black "Kovalenko, Igor"]
[WhiteFideId "24133795"]
[BlackFideId "14117908"]
[WhiteElo "2714"]
[BlackElo "2574"]
[Result "0-1"]
[Round "11"]
[TimeControl "180+2"]
[Date "2023.04.18"]
[WhiteClock "0:00:01"]
[BlackClock "0:00:17"]

1. d4 {[%clk 0:03:00]}  Nf6 {[%clk 0:03:00]} 2. c4 {[%clk 0:03:00]}  e6 {[%clk 0:03:00]} 3. Nf3 {[%clk 0:02:54]}  Bb4+ {[%clk 0:03:00]} 4. Bd2 {[%clk 0:02:53]}  a5 {[%clk 0:03:01]} 5. g3 {[%clk 0:02:52]}  d5 {[%clk 0:03:01]} 6. Qc2 {[%clk 0:02:52]}  O-O {[%clk 0:03:01]} 7. Bg2 {[%clk 0:02:52]}  b6 {[%clk 0:03:01]} 8. a3 {[%clk 0:02:47]}  Be7 {[%clk 0:02:59]} 9. cxd5 {[%clk 0:02:40]}  exd5 {[%clk 0:02:58]} 10. O-O {[%clk 0:02:40]}  Ba6 {[%clk 0:02:58]} 11. Nc3 {[%clk 0:02:40]}  c5 {[%clk 0:02:58]} 12. Rfd1 {[%clk 0:02:38]}  Nc6 {[%clk 0:02:57]} 13. Bg5 {[%clk 0:02:37]}  Rc8 {[%clk 0:02:18]} 14. dxc5 {[%clk 0:02:27]}  d4 {[%clk 0:02:18]} 15. cxb6 {[%clk 0:02:03]}  Qxb6 {[%clk 0:02:15]} 16. Bxf6 {[%clk 0:02:03]}  Bxf6 {[%clk 0:02:01]} 17. Nd5 {[%clk 0:02:03]}  Qd8 {[%clk 0:02:01]} 18. Nxf6+ {[%clk 0:01:50]}  Qxf6 {[%clk 0:02:02]} 19. Qd2 {[%clk 0:01:49]}  Rcd8 {[%clk 0:01:47]} 20. Rac1 {[%clk 0:01:33]}  Rfe8 {[%clk 0:01:47]} 21. Re1 {[%clk 0:01:23]}  h6 {[%clk 0:01:32]} 22. Rc5 {[%clk 0:01:17]}  Re6 {[%clk 0:01:30]} 23. b4 {[%clk 0:01:11]}  axb4 {[%clk 0:01:27]} 24. axb4 {[%clk 0:01:12]}  Qe7 {[%clk 0:01:22]} 25. h4 {[%clk 0:00:55]}  Rdd6 {[%clk 0:01:08]} 26. b5 {[%clk 0:00:53]}  Bb7 {[%clk 0:00:51]} 27. bxc6 {[%clk 0:00:53]}  Bxc6 {[%clk 0:00:52]} 28. Qc1 {[%clk 0:00:43]}  Be4 {[%clk 0:00:50]} 29. Rc8+ {[%clk 0:00:37]}  Kh7 {[%clk 0:00:50]} 30. Qc5 {[%clk 0:00:36]}  Qf6 {[%clk 0:00:47]} 31. Rd1 {[%clk 0:00:33]}  d3 {[%clk 0:00:46]} 32. Re1 {[%clk 0:00:20]}  dxe2 {[%clk 0:00:42]} 33. Qa3 {[%clk 0:00:20]}  Rd1 {[%clk 0:00:39]} 34. Rc1 {[%clk 0:00:19]}  Rxc1 {[%clk 0:00:31]} 35. Rxc1 {[%clk 0:00:05]}  Bxf3 {[%clk 0:00:31]} 36. Qd3+ {[%clk 0:00:06]}  g6 {[%clk 0:00:29]} 37. Re1 {[%clk 0:00:03]}  Bxg2 {[%clk 0:00:28]} 38. Kxg2 {[%clk 0:00:04]}  Qb2 {[%clk 0:00:22]} 39. f3 {[%clk 0:00:05]}  h5 {[%clk 0:00:21]} 40. Kf2 {[%clk 0:00:04]}  Qb6+ {[%clk 0:00:21]} 41. Kg2 {[%clk 0:00:04]}  Re3 {[%clk 0:00:19]} 42. Qd2 {[%clk 0:00:04]}  Qe6 {[%clk 0:00:18]} 43. Kf2 {[%clk 0:00:03]}  Ra3 {[%clk 0:00:17]} 44. Rxe2 {[%clk 0:00:03]}  Qh3 {[%clk 0:00:17]} 45. Qf4 {[%clk 0:00:01]}  Qh2+ {[%clk 0:00:17]} 0-1


[Site "https://www.chess.com"]

[Event "Titled Tuesday Blitz April 18 Early 2023"]
[White "Sadhwani, Raunak"]
[Black "Deac, Bogdan-Daniel"]
[WhiteFideId "35093487"]
[BlackFideId "1226380"]
[WhiteElo "2631"]
[BlackElo "2649"]
[Result "0-1"]
[Round "11"]
[TimeControl "180+2"]
[Date "2023.04.18"]
[WhiteClock "0:00:02"]
[BlackClock "0:00:02"]

1. Nf3 {[%clk 0:02:59]}  d5 {[%clk 0:02:59]} 2. b3 {[%clk 0:02:59]}  Nf6 {[%clk 0:02:58]} 3. Bb2 {[%clk 0:03:00]}  c5 {[%clk 0:02:58]} 4. e3 {[%clk 0:03:00]}  e6 {[%clk 0:02:57]} 5. Bb5+ {[%clk 0:03:00]}  Nbd7 {[%clk 0:02:55]} 6. O-O {[%clk 0:02:59]}  a6 {[%clk 0:02:51]} 7. Be2 {[%clk 0:02:58]}  Bd6 {[%clk 0:02:48]} 8. d4 {[%clk 0:02:59]}  cxd4 {[%clk 0:02:46]} 9. exd4 {[%clk 0:03:00]}  O-O {[%clk 0:02:44]} 10. Bd3 {[%clk 0:03:00]}  Qc7 {[%clk 0:02:37]} 11. Nbd2 {[%clk 0:03:00]}  b6 {[%clk 0:02:35]} 12. Re1 {[%clk 0:03:00]}  Bb7 {[%clk 0:02:35]} 13. a3 {[%clk 0:02:57]}  Rfd8 {[%clk 0:02:33]} 14. Qe2 {[%clk 0:02:56]}  Nf8 {[%clk 0:02:33]} 15. g3 {[%clk 0:02:55]}  Rac8 {[%clk 0:02:31]} 16. c3 {[%clk 0:02:44]}  Ra8 {[%clk 0:02:09]} 17. Rac1 {[%clk 0:02:42]}  Re8 {[%clk 0:02:09]} 18. h4 {[%clk 0:02:36]}  Qe7 {[%clk 0:02:08]} 19. a4 {[%clk 0:02:30]}  Ba3 {[%clk 0:01:59]} 20. Bxa3 {[%clk 0:02:28]}  Qxa3 {[%clk 0:02:00]} 21. Ne5 {[%clk 0:02:22]}  Qd6 {[%clk 0:01:54]} 22. h5 {[%clk 0:02:09]}  h6 {[%clk 0:01:52]} 23. Qf3 {[%clk 0:02:09]}  Qc7 {[%clk 0:01:42]} 24. Bb1 {[%clk 0:02:06]}  Rac8 {[%clk 0:01:39]} 25. Re3 {[%clk 0:02:04]}  N8d7 {[%clk 0:01:34]} 26. Nxd7 {[%clk 0:01:58]}  Nxd7 {[%clk 0:01:22]} 27. Rce1 {[%clk 0:01:55]}  Qd6 {[%clk 0:01:10]} 28. Qe2 {[%clk 0:01:41]}  Nf6 {[%clk 0:01:05]} 29. Qd3 {[%clk 0:01:11]}  Rc7 {[%clk 0:00:58]} 30. Nf3 {[%clk 0:01:02]}  Ne4 {[%clk 0:00:55]} 31. c4 {[%clk 0:01:02]}  Nf6 {[%clk 0:00:52]} 32. Ne5 {[%clk 0:01:01]}  dxc4 {[%clk 0:00:51]} 33. bxc4 {[%clk 0:01:02]}  Rd8 {[%clk 0:00:50]} 34. Rd1 {[%clk 0:01:02]}  Qb4 {[%clk 0:00:43]} 35. Bc2 {[%clk 0:00:59]}  b5 {[%clk 0:00:27]} 36. axb5 {[%clk 0:00:49]}  axb5 {[%clk 0:00:27]} 37. c5 {[%clk 0:00:42]}  Qa5 {[%clk 0:00:27]} 38. Rb1 {[%clk 0:00:26]}  b4 {[%clk 0:00:26]} 39. Nc4 {[%clk 0:00:26]}  Qa2 {[%clk 0:00:18]} 40. Bb3 {[%clk 0:00:15]}  Qa8 {[%clk 0:00:16]} 41. Nd6 {[%clk 0:00:16]}  Bd5 {[%clk 0:00:15]} 42. Bc2 {[%clk 0:00:12]}  Ra7 {[%clk 0:00:15]} 43. Rxb4 {[%clk 0:00:10]}  Ra1+ {[%clk 0:00:13]} 44. Rb1 {[%clk 0:00:11]}  Rxb1+ {[%clk 0:00:14]} 45. Bxb1 {[%clk 0:00:12]}  Rb8 {[%clk 0:00:14]} 46. Re1 {[%clk 0:00:11]}  Qa5 {[%clk 0:00:12]} 47. Rf1 {[%clk 0:00:11]}  Qb4 {[%clk 0:00:11]} 48. Bc2 {[%clk 0:00:10]}  Qa5 {[%clk 0:00:10]} 49. f3 {[%clk 0:00:07]}  Qa2 {[%clk 0:00:09]} 50. g4 {[%clk 0:00:07]}  Bc6 {[%clk 0:00:08]} 51. Rf2 {[%clk 0:00:07]}  Rb2 {[%clk 0:00:06]} 52. Qc3 {[%clk 0:00:06]}  Qa1+ {[%clk 0:00:04]} 53. Kg2 {[%clk 0:00:06]}  Kf8 {[%clk 0:00:04]} 54. Kh2 {[%clk 0:00:03]}  Nd5 {[%clk 0:00:03]} 55. Qd2 {[%clk 0:00:03]}  Qa2 {[%clk 0:00:03]} 56. Qd3 {[%clk 0:00:03]}  Ba4 {[%clk 0:00:02]} 57. Qh7 {[%clk 0:00:01]}  Rxc2 {[%clk 0:00:02]} 58. Qh8+ {[%clk 0:00:01]}  Ke7 {[%clk 0:00:03]} 59. Rxc2 {[%clk 0:00:01]}  Qxc2+ {[%clk 0:00:02]} 60. Kg3 {[%clk 0:00:02]}  Qc1 {[%clk 0:00:03]} 61. Qc8 {[%clk 0:00:02]}  Qg1+ {[%clk 0:00:02]} 0-1


[Site "https://www.chess.com"]

[Event "Titled Tuesday Blitz April 18 Early 2023"]
[White "Shimanov, Aleksandr"]
[Black "Rodshtein, Maxim"]
[WhiteFideId "4198603"]
[BlackFideId "2806851"]
[WhiteElo "2631"]
[BlackElo "2555"]
[Result "1-0"]
[Round "11"]
[TimeControl "180+2"]
[Date "2023.04.18"]
[WhiteClock "0:00:53"]
[BlackClock "0:00:01"]

1. e4 {[%clk 0:03:00]}  g6 {[%clk 0:03:00]} 2. d4 {[%clk 0:03:00]}  Bg7 {[%clk 0:03:01]} 3. Nf3 {[%clk 0:02:58]}  d6 {[%clk 0:03:01]} 4. Nc3 {[%clk 0:02:58]}  Nf6 {[%clk 0:03:01]} 5. Be3 {[%clk 0:02:58]}  Nbd7 {[%clk 0:03:00]} 6. Qd2 {[%clk 0:02:58]}  c6 {[%clk 0:02:59]} 7. O-O-O {[%clk 0:02:55]}  O-O {[%clk 0:02:51]} 8. Bh6 {[%clk 0:02:52]}  b5 {[%clk 0:02:43]} 9. Bd3 {[%clk 0:02:49]}  e5 {[%clk 0:02:41]} 10. h4 {[%clk 0:02:41]}  b4 {[%clk 0:02:27]} 11. Nb1 {[%clk 0:02:36]}  Bxh6 {[%clk 0:01:54]} 12. Qxh6 {[%clk 0:02:35]}  Ng4 {[%clk 0:01:53]} 13. Qd2 {[%clk 0:02:35]}  h5 {[%clk 0:01:49]} 14. dxe5 {[%clk 0:02:30]}  dxe5 {[%clk 0:01:47]} 15. Ng5 {[%clk 0:02:25]}  Qb6 {[%clk 0:01:18]} 16. Rdf1 {[%clk 0:02:15]}  Nc5 {[%clk 0:01:16]} 17. Bc4 {[%clk 0:02:13]}  Kg7 {[%clk 0:00:51]} 18. f3 {[%clk 0:02:12]}  Nf6 {[%clk 0:00:31]} 19. Rd1 {[%clk 0:02:09]}  a5 {[%clk 0:00:26]} 20. Qd6 {[%clk 0:02:06]}  Na4 {[%clk 0:00:22]} 21. Qxe5 {[%clk 0:02:03]}  Qe3+ {[%clk 0:00:22]} 22. Nd2 {[%clk 0:02:03]}  Re8 {[%clk 0:00:17]} 23. Qc7 {[%clk 0:01:57]}  Ra7 {[%clk 0:00:16]} 24. Qh2 {[%clk 0:01:48]}  Nc3 {[%clk 0:00:15]} 25. Qg1 {[%clk 0:01:45]}  Nxd1 {[%clk 0:00:12]} 26. Kxd1 {[%clk 0:01:45]}  Qxg1+ {[%clk 0:00:11]} 27. Rxg1 {[%clk 0:01:46]}  Rd7 {[%clk 0:00:12]} 28. Ke2 {[%clk 0:01:46]}  Red8 {[%clk 0:00:12]} 29. Bd3 {[%clk 0:01:43]}  Nh7 {[%clk 0:00:12]} 30. Nb3 {[%clk 0:01:39]}  Nxg5 {[%clk 0:00:11]} 31. hxg5 {[%clk 0:01:40]}  Ra7 {[%clk 0:00:11]} 32. Ke3 {[%clk 0:01:38]}  Be6 {[%clk 0:00:10]} 33. Nc5 {[%clk 0:01:38]}  a4 {[%clk 0:00:11]} 34. b3 {[%clk 0:01:31]}  axb3 {[%clk 0:00:11]} 35. axb3 {[%clk 0:01:32]}  Kf8 {[%clk 0:00:10]} 36. f4 {[%clk 0:01:31]}  Ke7 {[%clk 0:00:10]} 37. f5 {[%clk 0:01:31]}  Bc8 {[%clk 0:00:10]} 38. f6+ {[%clk 0:01:29]}  Ke8 {[%clk 0:00:10]} 39. Bc4 {[%clk 0:01:27]}  Ra5 {[%clk 0:00:10]} 40. Nd3 {[%clk 0:01:20]}  Rxg5 {[%clk 0:00:11]} 41. Nxb4 {[%clk 0:01:21]}  Bb7 {[%clk 0:00:10]} 42. Nd3 {[%clk 0:01:21]}  c5 {[%clk 0:00:10]} 43. Nf2 {[%clk 0:01:09]}  Rg3+ {[%clk 0:00:09]} 44. Kf4 {[%clk 0:01:10]}  Rc3 {[%clk 0:00:08]} 45. Bd3 {[%clk 0:01:08]}  c4 {[%clk 0:00:07]} 46. Bxc4 {[%clk 0:01:02]}  Rxc2 {[%clk 0:00:07]} 47. Nh3 {[%clk 0:01:03]}  Rd4 {[%clk 0:00:06]} 48. Ng5 {[%clk 0:01:03]}  Kf8 {[%clk 0:00:04]} 49. Ra1 {[%clk 0:00:57]}  Rf2+ {[%clk 0:00:02]} 50. Ke5 {[%clk 0:00:56]}  Rd7 {[%clk 0:00:01]} 51. g3 {[%clk 0:00:53]} 1-0


[Site "https://www.chess.com"]

[Event "Titled Tuesday Blitz April 18 Early 2023"]
[White "Andreikin, Dmitry"]
[Black "Bharath Subramaniyam H"]
[WhiteFideId "4158814"]
[BlackFideId "46634827"]
[WhiteElo "2736"]
[BlackElo "2395"]
[Result "1-0"]
[Round "11"]
[TimeControl "180+2"]
[Date "2023.04.18"]
[WhiteClock "0:00:21"]
[BlackClock "0:00:06"]

1. d4 {[%clk 0:03:00]}  Nf6 {[%clk 0:02:58]} 2. Bg5 {[%clk 0:02:56]}  Ne4 {[%clk 0:02:57]} 3. Bf4 {[%clk 0:02:56]}  c5 {[%clk 0:02:57]} 4. f3 {[%clk 0:02:55]}  Qa5+ {[%clk 0:02:57]} 5. c3 {[%clk 0:02:54]}  Nf6 {[%clk 0:02:58]} 6. d5 {[%clk 0:02:54]}  e6 {[%clk 0:02:56]} 7. e4 {[%clk 0:02:54]}  exd5 {[%clk 0:02:56]} 8. exd5 {[%clk 0:02:55]}  d6 {[%clk 0:02:56]} 9. Na3 {[%clk 0:02:54]}  Be7 {[%clk 0:02:55]} 10. Nc4 {[%clk 0:02:47]}  Qc7 {[%clk 0:02:49]} 11. a4 {[%clk 0:02:47]}  O-O {[%clk 0:02:48]} 12. Ne2 {[%clk 0:02:48]}  Nbd7 {[%clk 0:02:35]} 13. Ng3 {[%clk 0:02:45]}  Nb6 {[%clk 0:02:34]} 14. Ne3 {[%clk 0:02:44]}  h6 {[%clk 0:02:27]} 15. a5 {[%clk 0:02:38]}  Nbd7 {[%clk 0:02:25]} 16. Ngf5 {[%clk 0:02:37]}  Re8 {[%clk 0:02:23]} 17. Bd3 {[%clk 0:02:31]}  Bf8 {[%clk 0:02:18]} 18. O-O {[%clk 0:02:30]}  Ne5 {[%clk 0:02:18]} 19. Bc2 {[%clk 0:02:24]}  Bd7 {[%clk 0:02:13]} 20. Kh1 {[%clk 0:02:18]}  b5 {[%clk 0:02:12]} 21. axb6 {[%clk 0:02:11]}  axb6 {[%clk 0:02:00]} 22. Rxa8 {[%clk 0:02:09]}  Rxa8 {[%clk 0:02:01]} 23. Qe1 {[%clk 0:02:06]}  Re8 {[%clk 0:01:42]} 24. Qh4 {[%clk 0:01:50]}  Qd8 {[%clk 0:01:19]} 25. Bxh6 {[%clk 0:01:34]}  Ng6 {[%clk 0:01:06]} 26. Qg5 {[%clk 0:01:22]}  gxh6 {[%clk 0:01:06]} 27. Nxh6+ {[%clk 0:01:23]}  Bxh6 {[%clk 0:01:06]} 28. Qxh6 {[%clk 0:01:24]}  Qe7 {[%clk 0:01:03]} 29. Nc4 {[%clk 0:01:00]}  Bb5 {[%clk 0:00:35]} 30. Bxg6 {[%clk 0:00:45]}  fxg6 {[%clk 0:00:36]} 31. Qxg6+ {[%clk 0:00:40]}  Qg7 {[%clk 0:00:36]} 32. Qxg7+ {[%clk 0:00:32]}  Kxg7 {[%clk 0:00:36]} 33. b3 {[%clk 0:00:33]}  Nxd5 {[%clk 0:00:35]} 34. Nxd6 {[%clk 0:00:28]}  Bxf1 {[%clk 0:00:35]} 35. Nxe8+ {[%clk 0:00:28]}  Kf8 {[%clk 0:00:35]} 36. Nd6 {[%clk 0:00:29]}  Nxc3 {[%clk 0:00:35]} 37. h4 {[%clk 0:00:29]}  Nd5 {[%clk 0:00:33]} 38. h5 {[%clk 0:00:23]}  Nf4 {[%clk 0:00:30]} 39. g4 {[%clk 0:00:23]}  Bg2+ {[%clk 0:00:29]} 40. Kh2 {[%clk 0:00:23]}  Bxf3 {[%clk 0:00:29]} 41. Kg3 {[%clk 0:00:23]}  Bxg4 {[%clk 0:00:16]} 42. Kxg4 {[%clk 0:00:22]}  Ne6 {[%clk 0:00:14]} 43. Kf5 {[%clk 0:00:21]}  Nd4+ {[%clk 0:00:12]} 44. Kg6 {[%clk 0:00:21]}  Kg8 {[%clk 0:00:10]} 45. h6 {[%clk 0:00:21]}  Nc6 {[%clk 0:00:05]} 46. h7+ {[%clk 0:00:20]}  Kh8 {[%clk 0:00:06]} 47. Nf7# {[%clk 0:00:21]} 1-0


[Site "https://www.chess.com"]

[Event "Titled Tuesday Blitz April 18 Early 2023"]
[White "Ibarra Jerez, Jose Carlos"]
[Black "Bacallao Alonso, Yusnel"]
[WhiteFideId "2226332"]
[BlackFideId "3507416"]
[WhiteElo "2638"]
[BlackElo "2561"]
[Result "1-0"]
[Round "11"]
[TimeControl "180+2"]
[Date "2023.04.18"]
[WhiteClock "0:00:23"]
[BlackClock "0:00:03"]

1. e4 {[%clk 0:03:00]}  c6 {[%clk 0:02:59]} 2. Nf3 {[%clk 0:03:01]}  d5 {[%clk 0:03:00]} 3. d3 {[%clk 0:03:01]}  g6 {[%clk 0:03:00]} 4. Qe2 {[%clk 0:03:00]}  Bg7 {[%clk 0:02:59]} 5. g3 {[%clk 0:03:01]}  Nd7 {[%clk 0:02:51]} 6. Bg2 {[%clk 0:03:01]}  e5 {[%clk 0:02:51]} 7. exd5 {[%clk 0:02:56]}  cxd5 {[%clk 0:02:49]} 8. c4 {[%clk 0:02:56]}  Ne7 {[%clk 0:02:37]} 9. Nc3 {[%clk 0:02:56]}  d4 {[%clk 0:02:37]} 10. Ne4 {[%clk 0:02:55]}  O-O {[%clk 0:02:35]} 11. O-O {[%clk 0:02:55]}  h6 {[%clk 0:02:32]} 12. b4 {[%clk 0:02:52]}  Qc7 {[%clk 0:02:24]} 13. Ba3 {[%clk 0:02:40]}  f5 {[%clk 0:02:22]} 14. Ned2 {[%clk 0:02:36]}  Re8 {[%clk 0:02:21]} 15. Rac1 {[%clk 0:02:31]}  a5 {[%clk 0:02:11]} 16. b5 {[%clk 0:02:31]}  Nc5 {[%clk 0:02:09]} 17. Rfe1 {[%clk 0:02:29]}  g5 {[%clk 0:01:55]} 18. Nb3 {[%clk 0:02:10]}  Nxb3 {[%clk 0:01:54]} 19. axb3 {[%clk 0:02:10]}  Ng6 {[%clk 0:01:40]} 20. Nxd4 {[%clk 0:02:07]}  a4 {[%clk 0:01:40]} 21. Bd5+ {[%clk 0:01:51]}  Kh7 {[%clk 0:01:39]} 22. b4 {[%clk 0:01:47]}  Bd7 {[%clk 0:01:33]} 23. Nf3 {[%clk 0:01:38]}  Re7 {[%clk 0:01:30]} 24. b6 {[%clk 0:01:33]}  Qd6 {[%clk 0:01:09]} 25. Bxb7 {[%clk 0:01:21]}  Rf8 {[%clk 0:00:56]} 26. c5 {[%clk 0:01:19]}  Qf6 {[%clk 0:00:56]} 27. c6 {[%clk 0:01:20]}  Be6 {[%clk 0:00:43]} 28. b5 {[%clk 0:01:19]}  Bd5 {[%clk 0:00:42]} 29. Rc5 {[%clk 0:01:10]}  Qf7 {[%clk 0:00:31]} 30. Rxd5 {[%clk 0:01:08]}  Qxd5 {[%clk 0:00:32]} 31. Bxe7 {[%clk 0:01:08]}  Nxe7 {[%clk 0:00:32]} 32. Nxe5 {[%clk 0:01:08]}  a3 {[%clk 0:00:29]} 33. Nd7 {[%clk 0:01:08]}  Rf7 {[%clk 0:00:30]} 34. Ba8 {[%clk 0:00:47]}  a2 {[%clk 0:00:28]} 35. b7 {[%clk 0:00:48]}  f4 {[%clk 0:00:16]} 36. Qe4+ {[%clk 0:00:43]}  Qxe4 {[%clk 0:00:15]} 37. dxe4 {[%clk 0:00:44]}  fxg3 {[%clk 0:00:14]} 38. hxg3 {[%clk 0:00:43]}  Bd4 {[%clk 0:00:14]} 39. Kh1 {[%clk 0:00:36]}  Rxf2 {[%clk 0:00:04]} 40. b8=Q {[%clk 0:00:36]}  Re2 {[%clk 0:00:04]} 41. Rf1 {[%clk 0:00:27]}  Rf2 {[%clk 0:00:04]} 42. Nf8+ {[%clk 0:00:25]}  Kg7 {[%clk 0:00:02]} 43. Ne6+ {[%clk 0:00:25]}  Kg6 {[%clk 0:00:03]} 44. Qe8+ {[%clk 0:00:23]} 1-0


[Site "https://www.chess.com"]